bitfinex-derivatives/quotes_ETHF0:USTF0_20250210
["timestamp","ask_amount","ask_price","bid_price","bid_amount"]
[1739200930892,3.2078,2649.3,2648.8,0.00566808]
[1739200931095,0.5907,2649.2,2648.8,0.00566808]
[1739200932295,3.7806,2649.7,2648.8,0.00566808]
[1739200932497,3.7806,2649.7,2648.9,5.67038542]
[1739200932693,3.7806,2649.7,2648.9,6.24508542]
[1739200933103,0.5907,2649.9,2649.2,3.2078]
[1739200933299,3.2078,2649.9,2649.3,1.863]
[1739200934602,4.04402006,2649.8,2649.3,1.863]
[1739200935604,1.1908,2650.1,2649.3,1.863]
[1739200936293,1.1908,2650.1,2649.5,3.2078]
[1739200936999,1.1908,2650.1,2649.6,40.8]
[1739200937902,0.00566808,2650.2,2649.8,3.2078]
[1739200940112,0.00566808,2650.2,2650.1,3.2078]
[1739200942698,0.00566808,2650.2,2650.1,9.2078]
[1739200942908,33.93606828,2652.4,2650.6,0.75434]
[1739200942909,3.2078,2651.9,2650.6,0.75434]
[1739200943108,0.5845,2651.8,2650.9,3.2078]
[1739200943301,0.5845,2651.8,2651.0,40.8]
[1739200943506,3.2078,2651.6,2651.0,40.8]
[1739200943708,3.2078,2651.3,2650.5,3.2078]
[1739200943904,3.2078,2650.7,2650.0,1.862]
[1739200944217,0.5679,2650.6,2650.0,5.0698]
[1739200944419,0.5679,2650.6,2650.2,2.46258542]
[1739200944704,0.58818058,2651.2,2650.3,3.2078]
[1739200944911,1.15608058,2651.2,2650.3,3.7584]
[1739200945107,1.15608058,2651.2,2650.4,0.75439]
[1739200945307,0.00368058,2651.2,2650.6,3.2078]
[1739200945509,0.00368058,2651.2,2650.9,3.2078]
[1739200945715,0.00368058,2651.2,2651.1,2.46258542]
[1739200946406,0.00368058,2651.2,2651.1,8.46258542]
[1739200946604,0.00368058,2651.2,2651.1,2.46258542]
[1739200946816,0.00368058,2651.2,2650.9,3.2078]
[1739200947215,0.00368058,2651.2,2651.1,40.8]
[1739200947409,0.00368058,2651.2,2650.7,1.862]
[1739200947610,0.59548058,2651.2,2650.7,1.862]
[1739200947809,1.20268058,2651.2,2650.7,1.862]
[1739200948613,1.20268058,2651.2,2650.4,1.861]
[1739200949012,1.20268058,2651.2,2650.6,3.2078]
[1739200949611,1.20268058,2651.2,2650.4,1.861]
[1739200949819,3.2078,2651.1,2650.4,1.861]
[1739200950018,0.6067,2651.0,2650.4,1.861]
[1739200950218,3.2078,2650.8,2650.3,1.861]
[1739200950416,3.2078,2650.5,2650.1,17.97065718]
[1739200950619,3.2078,2650.5,2650.1,0.00565718]
[1739200951218,0.578,2650.4,2650.1,0.00565718]
[1739200951415,3.2078,2650.2,2650.1,0.00565718]
[1739200952019,9.2078,2650.2,2649.4,5.0688]
[1739200952219,7.36891012,2650.2,2649.4,5.0688]
[1739200952710,7.36891012,2650.2,2649.2,1.861]
[1739200952711,3.2078,2649.9,2649.2,1.861]
[1739200953018,3.2078,2650.2,2649.2,1.861]
[1739200953220,0.00565718,2649.8,2649.3,0.00565718]
[1739200954421,3.2078,2649.6,2649.3,0.00565718]
[1739200954617,0.579,2649.5,2649.3,0.00565718]
[1739200955615,0.00565718,2649.8,2649.3,0.00565718]
[1739200955818,0.579,2649.6,2649.3,0.00565718]
[1739200956115,3.7868,2649.6,2649.3,0.00565718]
[1739200957522,0.5923,2649.5,2649.3,0.00565718]
[1739200957726,1.1577,2649.5,2649.3,0.00565718]
[1739200958231,4.0301848,2649.4,2648.4,5.0688]
[1739200958431,4.3655,2649.5,2648.4,5.0688]
[1739200958626,4.3655,2649.5,2648.5,40.8]
[1739200958830,4.3655,2649.5,2648.5,41.4107]
[1739200959536,4.3655,2649.5,2648.7,0.00565718]
[1739200959930,3.2078,2649.5,2648.7,3.96832718]
[1739200960131,3.2078,2649.5,2648.8,2.63472748]
[1739200960433,3.2078,2649.5,2649.0,3.2078]
[1739200960629,3.2078,2649.5,2649.1,1.861]
[1739200961728,3.7879,2649.5,2649.1,1.861]
[1739200962036,4.33052834,2649.4,2648.7,3.21345718]
[1739200962346,3.2078,2649.5,2648.7,3.21345718]
[1739200963035,3.2078,2649.5,2648.7,3.81765718]
[1739200963433,3.2078,2649.5,2648.7,3.21345718]
[1739200964131,0.579,2649.6,2649.0,3.2078]
[1739200964337,0.579,2649.6,2649.1,0.5584]
[1739200965036,0.579,2649.6,2649.0,3.2078]
[1739200966440,0.579,2649.6,2648.8,0.5584]
[1739200966641,0.579,2649.6,2649.0,3.2078]
[1739200966936,0.00565718,2649.8,2649.0,3.2078]
[1739200967442,0.00565718,2649.8,2649.1,0.5798]
[1739200967737,0.00565718,2649.8,2649.3,3.2078]
[1739200967942,0.00565718,2649.8,2649.4,1.861]
[1739200968442,0.00565718,2649.8,2649.6,3.2078]
[1739200968745,0.00565718,2649.8,2649.7,0.5798]
[1739200968943,0.00565718,2649.8,2649.7,42.13441]
[1739200969139,0.00565718,2649.8,2649.7,41.9781]
[1739200969542,0.00565718,2649.8,2649.7,41.3798]
[1739200970843,0.00565718,2649.8,2649.5,0.5881]
[1739200971037,0.00565718,2649.8,2649.6,3.2078]
[1739200971544,0.00565718,2649.8,2649.7,40.8]
[1739200972141,0.94905718,2649.8,2649.7,40.8]
[1739200972444,0.94905718,2649.8,2649.6,3.2078]
[1739200972742,0.94905718,2649.8,2649.5,41.3881]
[1739200972946,0.94905718,2649.8,2649.6,3.2078]
[1739200974041,0.94905718,2649.8,2649.3,3.2078]
[1739200974243,0.94905718,2649.8,2649.4,1.861]
[1739200976345,0.94905718,2649.8,2649.4,1.86]
[1739200977243,4.15685718,2649.8,2649.4,1.86]
[1739200977749,4.15685718,2649.8,2649.2,5.0678]
[1739200977941,4.15685718,2649.8,2649.2,1.86]
[1739200978141,0.94905718,2649.8,2649.2,1.86]
[1739200978337,0.94905718,2649.8,2649.1,3.2078]
[1739200978545,0.94905718,2649.8,2649.2,1.86]
[1739200978546,4.15685718,2649.8,2649.2,1.86]
[1739200978745,4.15685718,2649.8,2648.9,1.1507]
[1739200978746,3.2078,2649.5,2648.9,1.1507]
[1739200978946,1.1804,2649.4,2648.9,3.0107]
[1739200979652,1.1804,2649.4,2648.8,1.86]
[1739200980345,4.3882,2649.4,2648.7,21.18045718]
[1739200980540,0.5682,2649.3,2648.7,21.18045718]
[1739200980944,1.1804,2649.4,2648.7,21.18045718]
[1739200981140,0.5903,2649.4,2648.8,40.8]
[1739200981350,0.5903,2649.4,2648.8,41.3668]
[1739200981548,0.94905718,2649.8,2649.2,3.2078]
[1739200981742,0.94905718,2649.8,2649.3,2.4675]
[1739200981946,0.94905718,2649.8,2649.5,3.2078]
[1739200983055,0.94905718,2649.8,2649.5,6.42293529]
[1739200983257,0.94905718,2649.8,2649.6,0.5689]
[1739200983463,1.7754,2651.1,2650.0,0.75451]
[1739200983760,1.7754,2651.1,2650.6,3.2078]
[1739200984649,0.00565718,2651.1,2650.6,3.21345718]
[1739200984854,0.00565718,2651.1,2650.8,2.46048529]
[1739200985052,0.00565718,2651.1,2650.9,1.86]
[1739200985753,0.00565718,2651.1,2651.0,3.2078]
[1739200985962,3.2078,2652.0,2651.0,3.2078]
[1739200985963,3.2078,2652.0,2651.0,14.59991286]
[1739200986161,3.2078,2652.0,2651.4,3.2078]
[1739200986655,3.2078,2652.0,2651.5,40.8]
[1739200986956,3.2078,2652.0,2651.6,1.86]
[1739200987253,3.21148058,2652.0,2651.6,1.86]
[1739200988164,0.00368058,2652.0,2651.9,3.2078]
[1739200988860,0.00368058,2652.0,2651.9,5.66828529]
[1739200989856,0.00368058,2652.0,2651.9,11.66828529]
[1739200990256,0.00368058,2652.0,2651.9,5.66828529]
[1739200990451,0.00368058,2652.0,2651.9,11.66828529]
[1739200990856,0.00368058,2652.0,2651.9,16.63345368]
[1739200991565,0.00368058,2652.0,2651.9,11.66828529]
[1739200992158,0.00368058,2652.0,2651.9,5.66828529]
[1739200993758,0.5512,2653.0,2652.0,0.75395]
[1739200993958,0.571,2653.2,2652.6,2.46048529]
[1739200994162,0.571,2653.2,2652.7,1.859]
[1739200994965,3.7788,2653.2,2652.7,1.86465718]
[1739200995665,3.7788,2653.2,2652.7,42.66465718]
[1739200995857,0.5603,2653.5,2653.1,3.2078]
[1739200996668,3.2078,2653.7,2653.1,3.2078]
[1739200996863,3.7681,2653.7,2653.1,3.2078]
[1739200998270,3.7681,2653.7,2653.1,5.0658]
[1739200998666,15.97106828,2653.6,2653.1,3.2078]
[1739200998970,15.97106828,2653.6,2653.1,5.0658]
[1739200999165,15.97106828,2653.6,2652.9,1.858]
[1739200999372,0.018,2653.6,2652.9,1.858]
[1739201000467,3.2078,2653.4,2652.7,0.00565718]
[1739201000873,4.3081301,2653.3,2652.7,0.00565718]
[1739201001076,0.5646,2653.2,2652.7,0.00565718]
[1739201001265,0.5646,2653.2,2652.7,3.21345718]
[1739201002066,3.2078,2653.4,2652.7,3.21345718]
[1739201003277,0.018,2653.6,2653.0,3.2078]
[1739201003573,0.018,2653.6,2653.1,1.857]
[1739201004270,0.018,2653.6,2653.3,3.2078]
[1739201004871,0.018,2653.6,2653.2,40.8]
[1739201005376,0.018,2653.6,2653.3,3.2078]
[1739201006267,0.018,2653.6,2653.1,1.857]
[1739201008478,3.2078,2654.5,2653.5,2.46048529]
[1739201008673,1.1144,2654.4,2653.7,3.2078]
[1739201008971,3.2078,2654.2,2653.8,1.857]
[1739201009779,0.5709,2654.1,2653.2,3.67688529]
[1739201009967,3.2078,2653.9,2653.5,1.857]
[1739201010173,3.2078,2653.6,2653.5,1.857]
[1739201011169,3.2078,2653.6,2652.7,40.80565718]
[1739201011170,9.2078,2653.6,2652.7,40.80565718]
[1739201011373,1.2032,2653.5,2652.7,1.86265718]
[1739201011571,3.2078,2653.2,2652.7,0.00565718]
[1739201011775,3.2078,2652.9,2652.7,0.00565718]
[1739201011983,1.2032,2652.8,2652.7,0.00565718]
[1739201012383,1.2032,2652.8,2652.3,1.857]
[1739201013276,1.2032,2652.8,2652.2,40.8]
[1739201013277,3.2078,2652.6,2651.9,3.2078]
[1739201013472,3.2078,2652.3,2651.8,1.857]
[1739201013779,0.5858,2652.2,2652.0,0.00565718]
[1739201013989,0.5596,2652.1,2652.0,0.00565718]
[1739201017195,0.5514,2652.5,2652.0,0.00565718]
[1739201018286,1.1784,2652.7,2652.1,3.2078]
[1739201018494,1.1784,2652.7,2652.1,3.8132]
[1739201018694,0.00565718,2652.8,2652.5,3.2078]
[1739201018887,0.00565718,2652.8,2652.6,4.31748529]
[1739201019393,0.00565718,2652.8,2652.7,40.8]
[1739201019988,0.00565718,2652.8,2652.6,4.31748529]
[1739201020190,0.00565718,2652.8,2652.5,5.0648]
[1739201020485,0.00565718,2652.8,2652.5,1.857]
[1739201021487,0.00565718,2652.8,2652.3,1.857]
[1739201022389,0.00565718,2652.8,2652.3,7.52528529]
[1739201023502,0.00565718,2652.8,2652.3,5.0648]
[1739201023890,0.00565718,2652.8,2652.3,7.52528529]
[1739201025397,3.2078,2653.9,2652.6,6.42205529]
[1739201025594,1.726,2654.0,2652.9,5.66828529]
[1739201025799,1.726,2654.0,2653.0,1.856]
[1739201026994,3.2078,2653.9,2653.0,1.856]
[1739201028501,3.2078,2653.6,2652.9,1.856]
[1739201029796,3.2078,2653.6,2652.9,4.31648529]
[1739201030005,4.9338,2654.0,2652.9,4.87808529]
[1739201030703,3.2078,2653.7,2652.9,1.856]
[1739201031099,4.9338,2654.0,2652.9,1.856]
[1739201031291,4.9338,2654.0,2652.9,4.31648529]
[1739201031492,4.9338,2654.0,2653.1,3.2078]
[1739201031697,4.9338,2654.0,2653.4,3.2078]
[1739201032295,4.9338,2654.0,2653.4,3.21345718]
[1739201033596,3.7815,2654.0,2653.5,2.46048529]
[1739201033797,3.7815,2654.0,2653.6,1.856]
[1739201034595,3.7815,2654.0,2653.7,40.8]
[1739201035200,3.7815,2654.0,2653.6,1.856]
[1739201036307,3.7815,2654.0,2653.5,1.856]
[1739201036505,1.2004,2653.9,2653.5,1.856]
[1739201036805,1.2004,2653.9,2653.4,5.06945718]
[1739201038204,3.7815,2654.0,2653.4,5.06945718]
[1739201038402,0.5737,2654.0,2653.4,5.06945718]
[1739201038604,3.7815,2654.0,2653.4,5.06945718]
[1739201039205,3.93886974,2653.9,2653.4,3.21345718]
[1739201040309,3.7815,2654.0,2653.4,3.21345718]
[1739201041010,3.2078,2653.6,2653.4,0.00565718]
[1739201041211,1.181,2653.5,2652.7,2.4064]
[1739201041403,3.2078,2653.3,2652.7,1.855]
[1739201041603,0.5518,2653.2,2652.7,1.855]
[1739201042516,0.55745718,2653.2,2652.7,1.86065718]
[1739201044413,0.00565718,2653.2,2652.9,2.46048529]
[1739201044610,0.00565718,2653.2,2653.0,0.6104]
[1739201044811,0.00565718,2653.2,2653.1,3.2078]
[1739201045011,0.00565718,2653.2,2653.1,3.7955]
[1739201045408,0.00565718,2653.2,2653.1,44.5955]
[1739201045909,0.00565718,2653.2,2653.1,44.0078]
[1739201046110,0.00565718,2653.2,2653.0,1.855]
[1739201046619,1.18715718,2653.2,2653.0,1.855]
[1739201048510,1.75225718,2653.2,2653.0,1.855]
[1739201048914,0.00565718,2653.2,2653.0,1.855]
[1739201051010,1.1404,2654.0,2653.1,3.96144]
[1739201051209,1.1404,2654.0,2653.4,5.66828529]
[1739201051413,1.1404,2654.0,2653.5,0.556]
[1739201051913,0.5695,2654.3,2653.5,0.556]
[1739201052110,0.5695,2654.3,2653.7,3.2078]
[1739201052312,0.5695,2654.3,2653.7,5.0628]
[1739201053117,0.5695,2654.3,2653.7,7.52328529]
[1739201053310,0.5695,2654.3,2653.8,0.604]
[1739201054112,1.1692,2654.6,2653.8,0.604]
[1739201054313,1.1692,2654.6,2653.9,40.8]
[1739201055207,0.5634,2654.5,2653.9,40.8]
[1739201055819,0.5634,2654.5,2653.8,0.604]
[1739201056822,0.5634,2654.5,2653.9,40.8]
[1739201058720,0.5634,2654.5,2653.8,0.604]
[1739201058919,3.2078,2654.0,2652.9,19.794]
[1739201059117,3.2078,2653.8,2652.9,19.794]
[1739201059314,3.2078,2653.5,2652.9,1.854]
[1739201059826,0.5776,2653.7,2652.9,1.854]
[1739201060827,0.6055,2653.9,2653.3,2.46048529]
[1739201061023,0.6055,2653.9,2653.4,3.2078]
[1739201061232,3.2078,2654.6,2653.4,3.2078]
[1739201061432,3.7802,2654.6,2653.5,1.1502]
[1739201061631,3.7802,2654.6,2653.6,1.854]
[1739201061832,3.2078,2654.3,2653.6,1.854]
[1739201062436,3.2078,2654.3,2653.5,1.854]
[1739201063925,3.2078,2654.3,2653.0,3.61068529]
[1739201064225,2.46048529,2654.4,2652.5,45.8618]
[1739201064226,3.2078,2653.3,2652.5,45.8618]
[1739201064427,1.7221,2653.2,2652.5,44.0078]
[1739201064833,3.2078,2653.0,2652.5,44.0078]
[1739201065028,3.2078,2653.0,2652.5,3.2078]
[1739201065536,5.66828529,2653.0,2652.5,3.2078]
[1739201066823,3.92694855,2652.9,2651.9,40.8]
[1739201067135,3.2078,2652.7,2651.9,40.8]
[1739201067640,0.6018,2652.6,2651.9,40.8]
[1739201067934,0.5801,2652.5,2652.0,0.00565718]
[1739201068331,3.2078,2652.4,2652.0,0.00565718]
[1739201069131,3.2078,2652.1,2652.0,0.00565718]
[1739201069328,3.2078,2652.1,2651.6,0.52364]
[1739201069534,0.6018,2652.0,2651.6,0.52364]
[1739201069736,3.2078,2651.7,2651.6,0.52364]
[1739201076238,3.96184,2651.7,2651.6,0.52364]
[1739201076534,7.55073421,2651.7,2650.4,9.37597766]
[1739201076832,3.2078,2651.1,2650.6,1.854]
[1739201077931,3.21345718,2651.1,2650.6,1.85965718]
[1739201078537,3.21345718,2651.1,2650.6,0.00565718]
[1739201080229,3.21345718,2651.1,2650.6,2.46614247]
[1739201080937,3.21345718,2651.1,2650.7,4.94033087]
[1739201081438,3.21345718,2651.1,2650.8,0.6073]
[1739201081833,0.00565718,2651.1,2650.9,1.855]
[1739201083432,3.7928,2651.8,2651.0,3.7862]
[1739201083743,0.585,2651.8,2651.0,3.7862]
[1739201084646,0.00565718,2651.7,2651.0,3.7862]
[1739201086442,0.00565718,2651.7,2651.0,4.08757249]
[1739201087746,0.00565718,2651.7,2651.5,2.46048529]
[1739201087938,3.2078,2652.2,2651.6,2.4627]
[1739201088146,3.2078,2652.2,2651.8,3.2078]
[1739201089352,3.2078,2652.2,2651.7,0.5635]
[1739201089545,3.2078,2652.2,2651.6,1.854]
[1739201089747,0.5709,2652.1,2651.6,1.854]
[1739201091042,3.2078,2652.2,2651.6,1.854]
[1739201091245,3.2078,2652.2,2651.7,1.1707]
[1739201091448,3.2078,2652.2,2651.8,1.99685198]
[1739201092050,3.2078,2652.2,2651.7,1.1707]
[1739201092356,3.2078,2652.2,2651.6,1.854]
[1739201092555,3.2078,2651.9,2651.6,1.854]
[1739201092853,3.2078,2651.9,2651.1,3.2078]
[1739201093053,3.2078,2651.9,2651.1,5.0618]
[1739201093054,0.5861,2651.8,2651.1,5.0618]
[1739201093254,3.2078,2651.6,2651.1,5.0618]
[1739201093654,3.2078,2651.6,2651.1,3.2078]
[1739201094052,0.5532,2651.5,2651.1,3.2078]
[1739201099852,3.2078,2651.6,2651.1,3.2078]
[1739201100059,2.914,2651.7,2651.1,3.2078]
[1739201100454,3.2078,2651.6,2651.1,3.2078]
[1739201100655,3.2078,2651.3,2650.6,0.00565718]
[1739201100962,3.2078,2651.0,2650.6,0.00565718]
[1739201101156,1.1866,2650.9,2650.6,0.00565718]
[1739201101363,3.2078,2650.7,2650.6,0.00565718]
[1739201104264,3.2078,2650.7,2649.8,44.0078]
[1739201104460,3.2078,2650.4,2649.8,3.2078]
[1739201105159,3.2078,2650.4,2649.5,44.0078]
[1739201105363,3.2078,2649.9,2649.8,0.00565718]
[1739201109664,3.2078,2649.9,2649.1,0.5645]
[1739201109869,3.2078,2649.5,2649.1,0.5645]
[1739201110070,3.2078,2649.5,2648.9,1.854]
[1739201110272,3.2078,2649.5,2648.9,2.4104]
[1739201110569,3.2078,2649.5,2648.9,43.2104]
[1739201110763,3.21345718,2649.5,2648.9,43.21605718]
[1739201111684,3.2078,2649.2,2648.9,0.56205718]
[1739201112168,3.2078,2649.2,2648.9,0.00565718]
[1739201112967,0.5824,2649.1,2648.9,0.00565718]
[1739201113160,4.61013929,2649.1,2648.1,3.2078]
[1739201113359,3.2078,2648.8,2648.1,3.2078]
[1739201113563,3.2078,2648.8,2648.0,1.854]
[1739201113969,3.2078,2648.8,2648.2,2.45842398]
[1739201114368,3.2078,2648.8,2648.3,0.6008]
[1739201114966,3.2078,2648.8,2648.2,0.00565718]
[1739201115171,1.1791,2648.7,2648.2,0.00565718]
[1739201116076,3.2078,2648.8,2648.2,0.00565718]
[1739201118470,3.2078,2648.8,2648.3,40.8]
[1739201119267,3.2078,2648.8,2648.4,0.6112]
[1739201120768,3.2078,2648.8,2648.4,1.192]
[1739201121669,0.5824,2649.1,2648.4,1.192]
[1739201121872,1.1875,2649.4,2648.5,2.45842398]
[1739201122273,3.2078,2649.3,2648.4,4.3998]
[1739201125292,1.1875,2649.4,2648.4,4.3998]
[1739201125493,4.3953,2649.4,2648.4,4.3998]
[1739201125692,4.3953,2649.4,2648.7,3.2078]
[1739201125892,5.15,2649.4,2648.7,3.2078]
[1739201126196,4.3953,2649.4,2648.7,3.2078]
[1739201130398,4.3953,2649.4,2649.1,0.0041579]
[1739201133493,3.8113,2649.4,2649.1,0.0041579]
[1739201134095,3.2078,2649.4,2649.1,0.0041579]
[1739201134702,0.5779,2649.3,2649.1,0.0041579]
[1739201135001,0.5608,2649.2,2649.1,0.0041579]
[1739201136098,2.00098842,2649.6,2649.1,0.0041579]
[1739201136099,3.2078,2650.5,2649.1,5.21294632]
[1739201136298,1.7362,2650.4,2649.6,3.2078]
[1739201136494,1.7362,2650.4,2650.0,3.2078]
[1739201137595,1.7362,2650.4,2649.9,0.00565718]
[1739201138899,1.7362,2650.4,2649.9,3.21345718]
[1739201139203,3.2078,2650.0,2649.9,0.00565718]
[1739201139505,3.2078,2650.0,2649.2,2.4125]
[1739201139802,7.2409873,2650.0,2649.2,1.853]
[1739201140197,3.2078,2649.6,2649.1,0.0041579]
[1739201140402,0.5987,2649.5,2649.1,0.0041579]
[1739201140602,1.1672,2649.5,2649.1,0.0041579]
[1739201142707,0.5833,2649.4,2649.1,0.0041579]
[1739201147004,3.2078,2649.3,2649.1,0.0041579]
[1739201159519,3.96252,2649.3,2649.1,0.0041579]
[1739201159714,3.2078,2649.3,2649.1,0.0041579]
[1739201160816,3.96255,2649.3,2649.1,0.0041579]
[1739201161012,4.17525129,2649.2,2649.0,0.00565718]
[1739201161217,4.17525129,2649.2,2648.2,0.5812]
[1739201161411,3.2078,2648.5,2648.0,0.5836]
[1739201161819,3.96276,2648.5,2647.7,3.02483132]
[1739201162016,3.2078,2648.5,2647.7,0.5625]
[1739201162418,0.00565718,2648.4,2647.8,0.00565718]
[1739201163416,3.2078,2648.2,2647.8,0.00565718]
[1739201163716,1.2001,2648.1,2647.8,0.00565718]
[1739201163923,0.00565718,2648.4,2648.0,2.00269342]
[1739201164508,0.00565718,2648.4,2648.1,0.5776]
[1739201164921,0.00565718,2648.4,2648.3,2.00269342]
[1739201165119,3.2078,2649.4,2648.3,2.75770342]
[1739201165313,3.7619,2649.4,2648.6,2.00269342]
[1739201165925,2.00269342,2649.3,2648.7,0.5547]
[1739201166120,3.16719342,2649.3,2648.7,0.5547]
[1739201166317,3.1728506,2649.3,2648.7,0.5547]
[1739201166618,1.17015718,2649.3,2648.7,0.5547]
[1739201168116,0.00565718,2649.3,2648.7,0.5547]
[1739201168322,0.00565718,2649.3,2648.8,0.6053]
[1739201168522,0.00565718,2649.3,2648.9,2.00269342]
[1739201169021,0.00565718,2649.3,2647.8,0.00565718]
[1739201169022,0.75492,2648.7,2647.8,0.00565718]
[1739201169214,5.21049342,2649.0,2647.8,0.61095718]
[1739201169215,3.2078,2648.3,2647.8,0.61095718]
[1739201169423,3.2078,2648.0,2647.8,0.00565718]
[1739201170121,3.2078,2648.5,2647.9,5.21049342]
[1739201170314,3.2078,2649.0,2648.2,2.00269342]
[1739201170510,3.2078,2649.0,2648.2,5.21049342]
[1739201170919,3.2078,2648.7,2648.0,2.9649]
[1739201171515,3.2078,2649.0,2648.0,2.9649]
[1739201171815,3.2078,2649.0,2648.2,3.2078]
[1739201172219,3.2078,2649.0,2648.1,1.852]
[1739201174023,3.2078,2649.0,2648.2,3.2078]
[1739201174723,3.2078,2649.0,2648.3,40.8]
[1739201175018,1.2057,2649.2,2648.3,40.8]
[1739201175222,3.21345718,2649.3,2648.5,3.2078]
[1739201175418,3.21345718,2649.3,2648.6,0.5596]
[1739201175620,3.21345718,2649.3,2648.7,0.5922]
[1739201175823,3.21345718,2649.3,2648.8,1.852]
[1739201177928,0.00565718,2649.3,2649.0,3.2078]
[1739201178118,1.1552,2650.2,2649.0,5.67126819]
[1739201178430,1.1552,2650.2,2649.3,3.2078]
[1739201178728,3.2078,2650.4,2649.6,3.2078]
[1739201178937,3.2078,2650.4,2649.7,1.851]
[1739201179526,0.00565718,2650.3,2649.8,0.00565718]
[1739201180031,0.00565718,2650.3,2649.9,3.2078]
[1739201180532,0.00565718,2650.3,2650.0,0.5995]
[1739201180721,0.00565718,2650.3,2649.9,3.2078]
[1739201182230,0.00565718,2650.3,2649.8,0.00565718]
[1739201185338,3.2078,2649.9,2649.8,0.00565718]
[1739201185530,3.2078,2649.9,2648.9,3.2078]
[1739201185531,0.75486,2648.9,2648.0,3.2078]
[1739201185736,3.2078,2648.6,2648.0,5.0578]
[1739201185928,3.2078,2648.9,2648.0,5.0578]
[1739201186131,3.2078,2648.6,2648.0,1.85]
[1739201186321,3.2078,2648.6,2647.9,1.1339]
[1739201186631,0.00565718,2648.5,2648.0,0.00565718]
[1739201187433,0.00565718,2648.5,2648.0,3.21345718]
[1739201188127,0.00565718,2648.5,2648.3,3.2078]
[1739201188833,0.00565718,2648.5,2648.1,1.85]
[1739201192129,0.00565718,2648.5,2648.3,3.2078]
[1739201193629,0.00565718,2648.5,2648.1,1.85]
[1739201194132,3.21345718,2648.5,2648.0,0.00565718]
[1739201194327,3.2078,2648.2,2648.0,0.00565718]
[1739201195331,3.2078,2648.2,2647.0,1.85]
[1739201195332,7.2208194,2648.1,2647.0,1.85]
[1739201195523,3.2078,2647.5,2646.7,0.5697]
[1739201195724,3.2078,2647.5,2646.7,3.7775]
[1739201195936,3.2078,2647.5,2646.7,3.2078]
[1739201196231,3.2078,2647.2,2646.4,19.819]
[1739201196438,3.7941,2647.4,2646.8,0.00565718]
[1739201196829,3.79975718,2647.4,2646.8,0.00565718]
[1739201197135,3.21345718,2647.4,2646.8,0.00565718]
[1739201198129,0.00565718,2647.4,2647.2,3.2078]
[1739201198633,0.00565718,2647.4,2647.2,5.67126819]
[1739201198834,0.00565718,2647.4,2647.2,3.2078]
[1739201201030,3.7815,2648.2,2647.2,3.2078]
[1739201201031,3.7815,2648.2,2647.3,40.8]
[1739201201232,0.5737,2648.2,2647.3,40.8]
[1739201201430,1.1656,2648.4,2647.5,5.67126819]
[1739201201625,0.5619,2648.4,2647.9,3.2078]
[1739201201830,0.5646,2648.6,2647.9,3.2078]
[1739201202034,7.5272203,2648.3,2647.3,40.8]
[1739201202236,3.2078,2648.0,2647.3,40.8]
[1739201202437,1.1538,2647.9,2647.3,40.8]
[1739201203533,3.2078,2648.3,2647.8,3.2078]
[1739201203738,0.00565718,2648.5,2647.5,5.67126819]
[1739201203739,0.5646,2648.4,2647.5,5.67126819]
[1739201204434,0.5646,2648.4,2647.5,3.2078]
[1739201205037,0.00565718,2648.5,2647.9,3.2078]
[1739201205342,0.00565718,2648.5,2648.0,0.5881]
[1739201208546,0.00565718,2648.5,2648.2,3.2078]
[1739201209043,0.00565718,2648.5,2648.3,0.5907]
[1739201209242,15.95306828,2648.9,2648.4,2.46346819]
[1739201209546,15.95306828,2648.9,2648.6,3.2078]
[1739201209739,15.95306828,2648.9,2648.7,0.6026]
[1739201210339,0.00565718,2649.1,2648.7,0.6026]
[1739201210539,0.00565718,2649.1,2648.8,40.8]
[1739201210938,3.21345718,2649.1,2648.8,40.8]
[1739201211147,3.21345718,2649.1,2648.5,1.85565718]
[1739201211746,3.2078,2648.8,2648.5,1.85565718]
[1739201212345,0.5706,2648.7,2648.5,1.85565718]
[1739201212643,0.5706,2648.7,2647.7,3.2078]
[1739201212840,5.67126819,2647.9,2646.4,20.43246819]
[1739201213041,3.2078,2647.5,2646.6,1.1628]
[1739201213839,3.2078,2647.5,2646.6,4.3706]
[1739201214144,0.00565718,2647.3,2646.8,0.00565718]
[1739201215037,3.2078,2647.2,2646.8,0.00565718]
[1739201215441,0.00565718,2647.3,2646.8,0.00565718]
[1739201216244,3.2078,2647.0,2646.8,0.00565718]
[1739201217645,3.2078,2647.0,2646.0,0.30336821]
[1739201217646,4.31624017,2646.9,2646.0,0.30336821]
[1739201217948,4.31624017,2646.9,2644.8,2.46346819]
[1739201217949,3.2078,2646.1,2644.8,2.46346819]
[1739201218149,3.21903819,2646.4,2644.8,2.46346819]
[1739201218150,3.2078,2645.9,2645.1,6.25896819]
[1739201218447,3.2078,2645.9,2645.1,3.7955]
[1739201218843,3.2078,2645.9,2645.2,40.8]
[1739201219050,0.00566797,2645.8,2645.2,0.00566797]
[1739201219746,3.2078,2645.3,2645.2,0.00566797]
[1739201220541,5.67126819,2645.3,2644.2,3.2078]
[1739201220749,3.2078,2644.9,2644.2,44.0078]
[1739201220947,3.2078,2644.9,2644.5,3.2078]
[1739201221147,3.2078,2645.4,2644.5,7.58926819]
[1739201221345,3.2078,2645.4,2644.8,3.2078]
[1739201221752,3.2078,2645.4,2644.8,3.21159661]
[1739201222052,3.2078,2646.5,2645.1,5.67126819]
[1739201222252,3.2078,2646.5,2645.3,3.2078]
[1739201222455,3.2078,2646.5,2645.2,1.919]
[1739201222456,3.2078,2646.5,2645.6,3.2078]
[1739201222653,1.1551,2646.6,2645.7,2.46346819]
[1739201222946,0.00151006,2645.8,2645.7,2.46346819]
[1739201223656,0.29579234,2647.4,2645.7,2.46346819]
[1739201223657,3.2078,2647.2,2645.8,0.75571]